bitfinex/quotes_BTCUSD_20250221
["timestamp","ask_amount","ask_price","bid_price","bid_amount"]
[1740132322050,0.81900673,98448.0,98447.0,0.00183075]
[1740132322525,0.82600673,98448.0,98447.0,0.00183075]
[1740132322727,0.92165242,98448.0,98447.0,0.00183075]
[1740132322927,0.92865242,98448.0,98447.0,0.00183075]
[1740132323369,0.82600673,98448.0,98447.0,0.00183075]
[1740132323998,0.81900673,98448.0,98447.0,0.00183075]
[1740132324163,0.82600673,98448.0,98447.0,0.00183075]
[1740132324808,0.81900673,98448.0,98447.0,0.00183075]
[1740132326030,0.82600673,98448.0,98447.0,0.00183075]
[1740132326434,0.92865242,98448.0,98447.0,0.00183075]
[1740132326813,0.82600673,98448.0,98447.0,0.00183075]
[1740132330236,0.81900673,98448.0,98447.0,0.00183075]
[1740132330560,0.82600673,98448.0,98447.0,0.00183075]
[1740132330677,0.81900673,98448.0,98447.0,0.00183075]
[1740132330887,0.82600673,98448.0,98447.0,0.00183075]
[1740132331782,0.82794672,98448.0,98447.0,0.00183075]
[1740132331992,0.81394672,98448.0,98447.0,0.00183075]
[1740132332215,0.82094672,98448.0,98447.0,0.00183075]
[1740132332380,0.82794672,98448.0,98447.0,0.00183075]
[1740132332850,0.83494672,98448.0,98447.0,0.00183075]
[1740132335361,3.47958372,98448.0,98447.0,0.00183075]
[1740132335829,3.49958372,98448.0,98447.0,0.00183075]
[1740132336280,3.48558372,98448.0,98447.0,0.00183075]
[1740132336504,3.49258372,98448.0,98447.0,0.00183075]
[1740132337013,3.52613287,98448.0,98447.0,0.00183075]
[1740132337204,0.99114156,98448.0,98447.0,0.00183075]
[1740132337645,3.63577856,98448.0,98447.0,0.00183075]
[1740132338563,3.42515287,98448.0,98447.0,0.00183075]
[1740132338806,0.74229587,98448.0,98447.0,0.00183075]
[1740132339034,0.58993187,98448.0,98447.0,0.00183075]
[1740132339271,0.43125187,98448.0,98447.0,0.00183075]
[1740132339497,0.43993187,98448.0,98447.0,0.00183075]
[1740132339941,0.39938272,98448.0,98447.0,0.00183075]
[1740132340381,0.39238272,98448.0,98447.0,0.00183075]
[1740132340606,0.39938272,98448.0,98447.0,0.00183075]
[1740132341394,0.34397751,98448.0,98447.0,0.00183075]
[1740132341601,0.37938272,98448.0,98447.0,0.00183075]
[1740132341771,0.37070272,98448.0,98447.0,0.00183075]
[1740132341983,0.37070272,98448.0,98447.0,0.15419675]
[1740132342232,0.37938272,98448.0,98447.0,0.07913075]
[1740132342432,0.34784159,98448.0,98447.0,0.23149675]
[1740132342841,0.34084159,98448.0,98447.0,0.07913075]
[1740132343049,0.32516159,98448.0,98447.0,0.07913075]
[1740132343281,0.34784159,98448.0,98447.0,0.23149675]
[1740132343480,0.21679069,98448.0,98447.0,0.27919675]
[1740132343681,0.20979069,98448.0,98447.0,0.27919675]
[1740132343879,0.20979069,98448.0,98447.0,0.42919675]
[1740132344143,0.21679069,98448.0,98447.0,0.73606604]
[1740132344346,0.2148507,98448.0,98447.0,0.73606604]
[1740132344525,0.2078507,98448.0,98447.0,0.73606604]
[1740132344770,0.2008507,98448.0,98447.0,0.73706604]
[1740132345185,0.2068507,98448.0,98447.0,0.73706604]
[1740132345552,0.2068507,98448.0,98447.0,0.73806604]
[1740132347203,0.2068507,98448.0,98447.0,1.27646604]
[1740132348946,0.2008507,98448.0,98447.0,1.27546604]
[1740132349115,0.2008507,98448.0,98447.0,1.27646604]
[1740132349522,0.2008507,98448.0,98447.0,1.27846604]
[1740132349950,7e-07,98448.0,98447.0,1.39565258]
[1740132352956,0.0008506,98469.0,98468.0,0.231933]
[1740132353172,0.0008506,98469.0,98468.0,0.53880229]
[1740132354104,0.0048506,98469.0,98468.0,0.53880229]
[1740132355680,0.0078506,98469.0,98468.0,0.53880229]
[1740132357892,0.0078506,98469.0,98468.0,0.5671694]
[1740132363103,0.0078506,98469.0,98468.0,0.4875694]
[1740132373922,0.0048506,98469.0,98468.0,0.4875694]
[1740132374127,0.0068506,98469.0,98468.0,0.4875694]
[1740132374684,0.0028506,98469.0,98468.0,0.4875694]
[1740132374958,0.0058506,98469.0,98468.0,0.4875694]
[1740132378761,0.0058506,98469.0,98468.0,0.4304494]
[1740132378972,0.0058506,98469.0,98468.0,0.3352364]
[1740132379588,0.0058506,98469.0,98468.0,0.4875694]
[1740132380359,0.0058506,98469.0,98468.0,0.6375694]
[1740132380574,0.0058506,98469.0,98468.0,0.7193694]
[1740132381418,0.0038506,98469.0,98468.0,0.7193694]
[1740132381605,0.0008506,98469.0,98468.0,0.7193694]
[1740132381802,0.0058506,98469.0,98468.0,0.7193694]
[1740132381955,0.0058506,98469.0,98468.0,0.72698742]
[1740132382137,0.0028506,98469.0,98468.0,0.72698742]
[1740132382543,0.0038506,98469.0,98468.0,0.72898742]
[1740132382794,0.0038506,98469.0,98468.0,1.26738742]
[1740132383212,0.0038506,98469.0,98468.0,1.26838742]
[1740132383631,0.0018506,98469.0,98468.0,1.26738742]
[1740132383835,0.0018506,98469.0,98468.0,1.27038742]
[1740132385059,6e-07,98469.0,98468.0,1.38757396]
[1740132385299,6e-07,98469.0,98468.0,1.43334875]
[1740132392991,2e-07,98469.0,98468.0,1.43334875]
[1740132393161,2e-07,98469.0,98468.0,1.41272921]
[1740132395028,0.0008506,98496.0,98481.0,0.152313]
[1740132396263,0.00128302,98482.0,98481.0,0.153313]
[1740132397525,0.00128302,98482.0,98481.0,0.154313]
[1740132400776,0.00128302,98482.0,98481.0,0.99958229]
[1740132401699,0.00128302,98482.0,98481.0,1.01960642]
[1740132406777,0.00128302,98482.0,98481.0,0.48120642]
[1740132407362,0.00128302,98482.0,98481.0,0.46118229]
[1740132407363,0.05078302,98482.0,98481.0,0.46118229]
[1740132409119,0.05078302,98482.0,98481.0,0.46018229]
[1740132409612,0.05178302,98482.0,98481.0,0.46018229]
[1740132412320,0.05178302,98482.0,98481.0,0.45918229]
[1740132412800,0.05278302,98482.0,98481.0,0.45918229]
[1740132413357,0.05378302,98482.0,98481.0,0.45918229]
[1740132422754,0.05378302,98482.0,98481.0,0.30686929]
[1740132422960,0.07350823,98482.0,98481.0,0.30686929]
[1740132423168,0.07523819,98482.0,98481.0,0.30686929]
[1740132423593,0.07323819,98482.0,98481.0,0.30686929]
[1740132423997,0.07523819,98482.0,98481.0,0.45918229]
[1740132424236,0.07423819,98482.0,98481.0,0.45918229]
[1740132424477,0.07250823,98482.0,98481.0,0.45918229]
[1740132424687,0.07450823,98482.0,98481.0,0.45918229]
[1740132424873,0.07623562,98482.0,98481.0,0.45918229]
[1740132425106,0.07450823,98482.0,98481.0,0.45918229]
[1740132426175,0.07250823,98482.0,98481.0,0.45918229]
[1740132426391,0.07450823,98482.0,98481.0,0.45918229]
[1740132427438,0.05478302,98482.0,98481.0,0.45918229]
[1740132427645,0.00528302,98482.0,98481.0,0.45918229]
[1740132429211,0.00328302,98482.0,98481.0,0.45918229]
[1740132429646,0.00428302,98482.0,98481.0,0.45918229]
[1740132429870,0.08478302,98482.0,98481.0,0.45918229]
[1740132430085,0.08478302,98482.0,98481.0,0.46018229]
[1740132430356,0.00328302,98482.0,98481.0,0.46018229]
[1740132430556,0.00328302,98482.0,98481.0,0.45918229]
[1740132432301,0.00428302,98482.0,98481.0,0.45918229]
[1740132432581,0.00328302,98482.0,98481.0,0.45918229]
[1740132438518,0.00328302,98482.0,98481.0,0.46018229]
[1740132438734,0.00328302,98482.0,98481.0,0.45918229]
[1740132439171,0.00328302,98482.0,98481.0,0.46018229]
[1740132439374,0.00328302,98482.0,98481.0,0.45918229]
[1740132440636,0.00328302,98482.0,98481.0,0.46118229]
[1740132446184,0.00017429,98483.0,98482.0,0.152312]
[1740132446391,0.0008506,98496.0,98495.0,0.152291]
[1740132446606,0.00094278,98496.0,98495.0,0.45916029]
[1740132446815,0.00267314,98496.0,98495.0,0.45916029]
[1740132447025,0.00094278,98496.0,98495.0,0.45916029]
[1740132447234,0.00094278,98496.0,98495.0,0.46926795]
[1740132447756,0.00194278,98496.0,98495.0,0.46926795]
[1740132448607,0.00094278,98496.0,98495.0,0.46926795]
[1740132449057,0.00194278,98496.0,98495.0,0.46926795]
[1740132450385,0.00094278,98496.0,98495.0,0.46926795]
[1740132451115,0.00194278,98496.0,98495.0,0.46926795]
[1740132454325,0.00194278,98496.0,98495.0,0.47698211]
[1740132455245,0.00194278,98496.0,98495.0,0.49729701]
[1740132462403,0.00294278,98496.0,98495.0,0.49729701]
[1740132482710,0.00294278,98496.0,98495.0,0.34500601]
[1740132482890,0.08084278,98496.0,98495.0,0.34500601]
[1740132483028,0.08258127,98496.0,98495.0,0.33729185]
[1740132483223,0.08258127,98496.0,98495.0,0.46926795]
[1740132483425,0.08258127,98496.0,98495.0,0.30686929]
[1740132483902,0.08258127,98496.0,98495.0,0.45916029]
[1740132484106,0.08084278,98496.0,98495.0,0.45916029]
[1740132484316,0.00294278,98496.0,98495.0,0.45916029]
[1740132484607,0.00294278,98496.0,98495.0,0.46918219]
[1740132494736,0.00294278,98496.0,98495.0,0.54488219]
[1740132495706,0.00194278,98496.0,98495.0,0.54488219]
[1740132495900,0.00094278,98496.0,98495.0,0.54488219]
[1740132496210,0.00094278,98496.0,98495.0,0.54988219]
[1740132496435,0.00094278,98496.0,98495.0,0.55749952]
[1740132497762,0.00094278,98496.0,98495.0,1.34854521]
[1740132499338,0.00094278,98496.0,98495.0,1.21308606]
[1740132500158,0.00094278,98496.0,98495.0,1.20546873]
[1740132500528,0.00094278,98496.0,98495.0,1.21307957]
[1740132515648,6e-07,98497.0,98496.0,0.31683085]
[1740132515854,6e-07,98497.0,98496.0,1.26474583]
[1740132516844,0.0010006,98497.0,98496.0,1.26674583]
[1740132517343,6e-07,98497.0,98496.0,1.27435667]
[1740132517664,6e-07,98497.0,98496.0,1.28351512]
[1740132518757,6e-07,98497.0,98496.0,1.28378991]
[1740132519376,8e-07,98507.0,98506.0,0.31681485]
[1740132519580,8e-07,98507.0,98506.0,0.49986054]
[1740132520212,8e-07,98507.0,98506.0,0.41946054]
[1740132520482,8e-07,98507.0,98506.0,0.42046054]
[1740132520803,8e-07,98507.0,98506.0,0.42807138]
[1740132521995,8e-07,98507.0,98506.0,0.43007138]
[1740132522519,8e-07,98507.0,98506.0,1.27534067]
[1740132523819,4e-07,98510.0,98509.0,0.31708564]
[1740132524024,4e-07,98510.0,98509.0,0.41973133]
[1740132525199,4e-07,98510.0,98509.0,0.42734217]
[1740132525622,2e-07,98519.0,98518.0,0.30253079]
[1740132525838,2e-07,98519.0,98518.0,1.26498662]
[1740132526947,0.0010002,98519.0,98518.0,1.27859746]
[1740132528946,0.0020002,98519.0,98518.0,1.28359746]
[1740132529293,0.0020002,98519.0,98518.0,1.39069746]
[1740132529502,0.0020002,98519.0,98518.0,1.29113488]
[1740132530552,0.0020002,98519.0,98518.0,1.31131597]
[1740132532273,0.0020002,98519.0,98518.0,1.31104118]
[1740132532449,0.0020002,98519.0,98518.0,1.30343034]
[1740132533065,0.0020002,98519.0,98518.0,1.13888949]
[1740132533216,0.0020002,98519.0,98518.0,1.14648556]
[1740132535114,0.00186817,98519.0,98518.0,1.14648556]
[1740132537471,0.00271857,98519.0,98518.0,1.14648556]
[1740132546025,0.00271857,98519.0,98518.0,1.04383987]
[1740132546026,0.13151857,98519.0,98518.0,1.04383987]
[1740132546236,0.13151857,98519.0,98518.0,0.86386536]
[1740132546791,0.13051857,98519.0,98518.0,0.85886536]
[1740132546996,0.1296504,98519.0,98518.0,0.85286536]
[1740132547195,0.1296504,98519.0,98518.0,1.00812136]
[1740132547396,0.1296504,98519.0,98518.0,0.85286536]
[1740132547574,0.1296504,98519.0,98518.0,1.00512136]
[1740132547779,0.1296504,98519.0,98518.0,0.85486536]
[1740132547979,0.0008504,98519.0,98518.0,1.00712136]
[1740132548186,0.0008504,98519.0,98518.0,1.11671183]
[1740132548378,4e-07,98519.0,98518.0,1.11971183]
[1740132548803,4e-07,98519.0,98518.0,1.11841263]
[1740132548966,4e-07,98519.0,98518.0,1.12041263]
[1740132549597,4e-07,98519.0,98518.0,1.11841263]
[1740132549792,4e-07,98519.0,98518.0,1.12341263]
[1740132550208,4e-07,98519.0,98518.0,1.12141263]
[1740132550950,4e-07,98519.0,98518.0,1.13301909]
[1740132551383,4e-07,98519.0,98518.0,1.12401909]
[1740132551498,4e-07,98519.0,98518.0,1.13301909]
[1740132554802,4e-07,98519.0,98518.0,1.28301909]
[1740132571530,4e-07,98519.0,98518.0,1.2871785]
[1740132573967,4e-07,98519.0,98518.0,1.3942785]
[1740132574194,4e-07,98519.0,98518.0,1.2871785]
[1740132580864,4e-07,98519.0,98518.0,2.2871785]
[1740132582147,4e-07,98519.0,98518.0,2.29936802]
[1740132582940,0.0008505,98527.0,98526.0,0.152244]
[1740132583194,0.00098021,98527.0,98526.0,0.152244]
[1740132583461,0.00261667,98527.0,98526.0,0.152244]
[1740132584215,0.00098021,98527.0,98526.0,0.17203998]
[1740132584684,0.00098021,98527.0,98526.0,0.17619939]
[1740132584923,0.00098021,98527.0,98526.0,1.02146868]
[1740132585435,0.00098021,98527.0,98526.0,1.00927916]
[1740132585677,0.00098021,98527.0,98526.0,1.01127916]
[1740132586656,0.00098021,98527.0,98526.0,1.01327916]
[1740132590071,0.0008505,98546.0,98528.0,0.01454085]
[1740132590328,3e-07,98540.0,98539.0,0.152223]
[1740132590528,0.0008505,98546.0,98545.0,0.152214]
[1740132590718,0.0008505,98546.0,98545.0,0.15231491]
[1740132591719,0.0008505,98546.0,98545.0,0.4591842]
[1740132591919,0.0008505,98546.0,98545.0,0.57637074]
[1740132592123,0.0008505,98546.0,98545.0,0.58353015]
[1740132592711,0.0008505,98546.0,98545.0,0.59113661]
[1740132592910,0.0008505,98546.0,98545.0,1.12953661]
[1740132593282,0.0008505,98546.0,98545.0,1.2798114]
[1740132593883,0.0008505,98546.0,98545.0,1.2818114]
[1740132594477,0.0008505,98546.0,98545.0,1.32583244]
[1740132595357,0.0008505,98546.0,98545.0,1.33347814]
[1740132596153,0.0008505,98546.0,98545.0,1.2954571]
[1740132596949,0.0008505,98546.0,98545.0,1.3160001]
[1740132598349,0.0008505,98546.0,98545.0,1.3110001]
[1740132598814,0.0008505,98546.0,98545.0,1.3170001]
[1740132599261,0.0008505,98546.0,98545.0,1.3110001]
[1740132599668,0.0008505,98546.0,98545.0,1.3180001]
[1740132600283,0.0008505,98546.0,98545.0,1.31772531]
[1740132600493,0.0008505,98546.0,98545.0,1.3180001]
[1740132601763,0.0008505,98546.0,98545.0,1.3280001]
[1740132602586,0.0008505,98546.0,98545.0,0.48273081]
[1740132603969,0.0008505,98546.0,98545.0,0.58973081]
[1740132604161,0.0008505,98546.0,98545.0,0.48273081]
[1740132605756,4e-07,98547.0,98546.0,0.31702864]
[1740132605978,4e-07,98547.0,98546.0,0.41967433]
[1740132606769,4e-07,98547.0,98546.0,0.43807536]
[1740132606966,4e-07,98547.0,98546.0,0.45007536]
[1740132608418,4e-07,98547.0,98546.0,0.4434402]
[1740132609394,4e-07,98547.0,98546.0,0.45558525]
[1740132610139,4e-07,98547.0,98546.0,0.46222041]
[1740132611071,4e-07,98547.0,98546.0,0.45007536]
[1740132611327,4e-07,98547.0,98546.0,0.4434402]
[1740132611570,4e-07,98547.0,98546.0,0.46392053]
[1740132612723,0.0475,98565.0,98564.0,0.302185]
[1740132613157,0.04948024,98565.0,98564.0,0.302185]
[1740132613306,0.0475,98565.0,98564.0,0.302185]
[1740132614992,0.0475,98565.0,98564.0,0.31242019]
[1740132616673,0.0475,98565.0,98564.0,0.31656937]
[1740132617537,0.0475,98565.0,98564.0,0.31756937]
[1740132618484,0.0475,98565.0,98564.0,0.16756937]
[1740132618851,0.0475,98565.0,98564.0,0.16856937]
[1740132619210,0.0475,98565.0,98564.0,0.16756937]
[1740132620210,0.0475,98565.0,98564.0,0.17517639]
[1740132620393,0.0485,98565.0,98564.0,0.17417639]
[1740132621669,0.0475,98565.0,98564.0,0.17417639]
[1740132621870,0.0483506,98565.0,98564.0,0.19457087]
[1740132622272,0.0483506,98565.0,98564.0,0.19557087]
[1740132623830,0.0483506,98565.0,98564.0,0.34557087]
[1740132624784,0.0083506,98565.0,98564.0,0.34557087]
[1740132625029,0.0008506,98565.0,98564.0,0.46275741]
[1740132626385,0.0008506,98565.0,98564.0,0.46975741]
[1740132626610,0.0008506,98565.0,98564.0,0.46875741]
[1740132627526,0.0008506,98565.0,98564.0,0.47475741]
[1740132627731,0.11748988,98568.0,98567.0,0.15218]
[1740132627947,0.11748988,98568.0,98567.0,0.41936654]
[1740132628672,0.11748988,98568.0,98567.0,0.42697356]
[1740132629115,0.11748988,98568.0,98567.0,0.43297356]
[1740132629543,0.0015507,98569.0,98567.0,0.43297356]
[1740132629544,5.8e-07,98569.0,98568.0,0.16699464]
[1740132629745,5.8e-07,98569.0,98568.0,0.49654033]
[1740132630909,5.8e-07,98569.0,98568.0,0.50414735]
[1740132631148,5.8e-07,98569.0,98568.0,0.51114735]
[1740132631681,5.8e-07,98569.0,98568.0,0.52193369]
[1740132631891,0.0008506,98581.0,98580.0,0.30216]
[1740132631892,6e-07,98581.0,98580.0,0.30216]
[1740132632093,6e-07,98581.0,98580.0,0.41934654]
[1740132632701,6e-07,98581.0,98580.0,0.43013288]
[1740132632948,6e-07,98581.0,98580.0,0.43040767]
[1740132633143,0.00043308,98581.0,98580.0,0.43040767]
[1740132633552,8e-08,98581.0,98580.0,0.43801469]
[1740132634022,8e-08,98581.0,98580.0,1.43801469]
[1740132634262,8e-08,98581.0,98580.0,1.43537753]
[1740132634432,8e-08,98581.0,98580.0,1.43137753]
[1740132634793,8e-08,98581.0,98580.0,1.44537753]
[1740132635180,8e-08,98581.0,98580.0,1.43837753]
[1740132635599,8e-08,98581.0,98580.0,1.44537753]
[1740132635801,0.0009205,98596.0,98594.0,0.152139]
[1740132636009,0.00349598,98595.0,98594.0,0.25478469]
[1740132636419,0.00098034,98595.0,98594.0,0.25478469]
[1740132637503,0.00098034,98595.0,98594.0,0.15983606]
[1740132637921,0.00098034,98595.0,98594.0,0.16383606]
[1740132639315,0.00098034,98595.0,98594.0,0.16683606]
[1740132640101,0.00098034,98595.0,98594.0,0.159139]
[1740132640540,0.00098034,98595.0,98594.0,0.155139]
[1740132640754,0.00098034,98595.0,98594.0,0.152139]
[1740132640959,0.00098034,98595.0,98594.0,0.153139]
[1740132641336,0.00098034,98595.0,98594.0,0.154139]
[1740132643683,0.00098034,98595.0,98594.0,1.154139]
[1740132645302,0.00098034,98595.0,98594.0,1.17490996]
[1740132656806,0.07768034,98595.0,98594.0,1.154139]
[1740132657764,0.07768034,98595.0,98594.0,1.002]
[1740132657969,0.29894255,98595.0,98594.0,1.002]
[1740132658175,0.29894255,98595.0,98594.0,1.001]
[1740132658389,0.30129304,98595.0,98594.0,1.001]
[1740132658805,0.30129304,98595.0,98594.0,1.0]
[1740132665085,0.14915604,98595.0,98594.0,1.0]
[1740132665428,0.30129304,98595.0,98594.0,1.0]
[1740132668375,0.14915604,98595.0,98594.0,1.0]
[1740132668758,0.30129304,98595.0,98594.0,1.0]
[1740132682694,0.30977304,98595.0,98594.0,1.0]
[1740132685437,0.15763604,98595.0,98594.0,1.0]
[1740132685634,0.15528555,98595.0,98594.0,1.0]
[1740132685872,0.14915384,98595.0,98594.0,1.0]
[1740132686072,0.15763384,98595.0,98594.0,1.0]
[1740132686275,0.14680555,98595.0,98594.0,1.0]
[1740132686529,0.13556034,98595.0,98594.0,1.0]
[1740132686731,0.00946034,98595.0,98594.0,1.152139]
[1740132693257,0.00946034,98595.0,98594.0,1.17266862]
[1740132697809,0.00946034,98595.0,98594.0,1.152139]
[1740132698012,0.00098034,98595.0,98594.0,1.152139]
[1740132702895,0.00098034,98595.0,98594.0,1.17279661]
[1740132703570,0.00098034,98595.0,98594.0,1.50139661]
[1740132711732,0.00098034,98595.0,98594.0,1.480739]
[1740132716821,0.0009205,98596.0,98595.0,0.152137]
[1740132721464,0.0009205,98596.0,98595.0,0.480737]
[1740132727669,0.0009205,98596.0,98595.0,0.481737]
[1740132728833,0.0009205,98596.0,98595.0,0.4834372]
[1740132729778,0.0009205,98596.0,98595.0,0.4844372]
[1740132731656,0.0009205,98596.0,98595.0,0.4834372]
[1740132732014,0.0009205,98596.0,98595.0,0.4824372]
[1740132733532,0.0009205,98596.0,98595.0,0.4844372]
[1740132733732,0.0009205,98596.0,98595.0,0.60162374]
[1740132735222,0.0009205,98596.0,98595.0,0.60362374]
[1740132735416,0.0009205,98596.0,98595.0,0.60162374]
[1740132735660,0.0009205,98596.0,98595.0,0.58908289]
[1740132736069,0.0009205,98596.0,98595.0,0.59408289]
[1740132736858,0.0009205,98596.0,98595.0,0.59008289]
[1740132737085,0.0009205,98596.0,98595.0,0.58508289]
[1740132737290,0.0009205,98596.0,98595.0,0.58908289]
[1740132738667,0.0009205,98596.0,98595.0,0.58508289]
[1740132738899,0.0009205,98596.0,98595.0,0.58908289]
[1740132739419,0.0009205,98596.0,98595.0,1.13048289]
[1740132740010,0.0009205,98596.0,98595.0,1.13448289]
[1740132740252,0.0009205,98596.0,98595.0,1.14202374]
[1740132740464,0.0009205,98596.0,98595.0,1.14102374]
[1740132740671,0.0009205,98596.0,98595.0,1.14502374]
[1740132744269,0.0009205,98596.0,98595.0,1.14102374]
[1740132744591,0.0009205,98596.0,98595.0,1.14502374]
[1740132744965,0.0009205,98596.0,98595.0,1.14202374]
[1740132745178,0.0009205,98596.0,98595.0,1.14502374]
[1740132745611,0.0009205,98596.0,98595.0,1.14202374]
[1740132745761,0.0009205,98596.0,98595.0,1.14602374]
[1740132746707,0.0009205,98596.0,98595.0,1.14202374]
[1740132746908,0.0009205,98596.0,98595.0,1.14702374]
[1740132756805,0.0009205,98596.0,98595.0,1.13248289]
[1740132763658,0.0009205,98596.0,98595.0,1.0298372]
[1740132764393,0.0812205,98596.0,98595.0,0.8777002]
[1740132765009,0.08357429,98596.0,98595.0,1.0298372]
[1740132765187,0.0812205,98596.0,98595.0,1.0248372]
[1740132765662,0.0812205,98596.0,98595.0,1.0278372]
[1740132766036,0.0812205,98596.0,98595.0,1.0248372]
[1740132766369,0.0812205,98596.0,98595.0,1.0268372]
[1740132766918,0.0812205,98596.0,98595.0,1.0228372]
[1740132768260,0.0812205,98596.0,98595.0,0.8707002]
[1740132768445,0.0812205,98596.0,98595.0,1.0228372]
[1740132769065,0.0812205,98596.0,98595.0,0.4844372]
[1740132769485,0.0812205,98596.0,98595.0,0.3323002]
[1740132769826,0.0812205,98596.0,98595.0,0.4844372]
[1740132770090,0.0812205,98596.0,98595.0,0.4874372]
[1740132770876,0.0812205,98596.0,98595.0,0.3353002]
[1740132771462,0.0812205,98596.0,98595.0,0.3323002]
[1740132771668,0.08357114,98596.0,98595.0,0.3323002]
[1740132771924,0.08357114,98596.0,98595.0,0.3333002]
[1740132772108,0.08357114,98596.0,98595.0,0.4854372]
[1740132772397,0.0812205,98596.0,98595.0,0.4854372]
[1740132772785,0.08357114,98596.0,98595.0,0.4854372]
[1740132773399,0.08357114,98596.0,98595.0,0.3333002]
[1740132773858,0.0812205,98596.0,98595.0,0.3333002]
[1740132774025,0.08375196,98596.0,98595.0,0.3333002]
[1740132774447,0.25561217,98596.0,98595.0,0.3333002]
[1740132775549,0.25561217,98596.0,98595.0,0.3323002]
[1740132776116,0.25561217,98596.0,98595.0,0.3303002]
[1740132779070,0.10347717,98596.0,98595.0,0.3303002]
[1740132779510,0.25561217,98596.0,98595.0,0.3303002]
[1740132779874,0.26401217,98596.0,98595.0,0.3303002]
[1740132780576,0.28401217,98596.0,98595.0,0.3303002]
[1740132782453,0.28501217,98596.0,98595.0,0.3303002]
[1740132782672,0.38765786,98596.0,98595.0,0.3303002]
[1740132782869,0.43425786,98596.0,98595.0,0.3303002]
[1740132783071,0.43425786,98596.0,98595.0,0.0017002]
[1740132783287,0.46589255,98596.0,98595.0,0.0017002]
[1740132783936,0.46489255,98596.0,98595.0,0.0017002]
[1740132784146,0.43325786,98596.0,98595.0,0.0017002]
[1740132785333,0.43825786,98596.0,98595.0,0.0017002]
[1740132785668,0.43625786,98596.0,98595.0,0.0017002]
[1740132786118,0.44125786,98596.0,98595.0,0.0017002]
[1740132787931,0.47288202,98596.0,98595.0,0.0017002]
[1740132788831,0.57552771,98596.0,98595.0,0.0017002]
[1740132789042,0.57052771,98596.0,98595.0,0.0017002]
[1740132789244,0.57752771,98596.0,98595.0,0.0027002]
[1740132789450,0.47188202,98596.0,98595.0,0.0027002]
[1740132789859,0.47488202,98596.0,98595.0,0.0037002]
[1740132790717,0.62488202,98596.0,98595.0,0.0037002]
[1740132792945,0.61788202,98596.0,98595.0,0.0027002]
[1740132793139,0.61488202,98596.0,98595.0,0.0017002]
[1740132793397,0.62888202,98596.0,98595.0,0.0027002]
[1740132795942,0.62048202,98596.0,98595.0,0.0027002]
[1740132796093,0.59725786,98596.0,98595.0,0.0027002]
[1740132796699,0.69990355,98596.0,98595.0,0.0027002]
[1740132797541,0.59725786,98596.0,98595.0,0.0027002]
[1740132798406,0.62890329,98596.0,98595.0,0.0027002]
[1740132801533,3.27354029,98596.0,98595.0,0.0027002]
[1740132802354,2.36801629,98596.0,98595.0,0.0017002]
[1740132802542,2.37501629,98596.0,98595.0,0.0017002]
[1740132802671,0.98315829,98596.0,98595.0,0.0017002]
[1740132802877,0.62190329,98596.0,98595.0,0.0017002]
[1740132803087,0.62890329,98596.0,98595.0,0.0017002]
[1740132803289,0.62190329,98596.0,98595.0,0.0017002]
[1740132803920,0.61490329,98596.0,98595.0,0.0017002]
[1740132804119,0.62190329,98596.0,98595.0,0.0017002]
[1740132804344,0.62890329,98596.0,98595.0,0.0017002]
[1740132804537,0.73154898,98596.0,98595.0,0.0017002]
[1740132804768,0.72454898,98596.0,98595.0,0.0017002]
[1740132805121,0.73154898,98596.0,98595.0,0.0017002]
[1740132805428,0.72454898,98596.0,98595.0,0.0017002]
[1740132805629,1.64262398,98596.0,98595.0,0.0017002]
[1740132805927,3.36918598,98596.0,98595.0,0.0017002]
[1740132806377,3.37618598,98596.0,98595.0,0.0017002]
[1740132807275,3.38318598,98596.0,98595.0,0.0017002]
[1740132811938,0.73854898,98596.0,98595.0,0.0017002]
[1740132812559,3.38318598,98596.0,98595.0,0.0017002]
[1740132812961,3.28054029,98596.0,98595.0,0.0017002]
[1740132815384,2.64943129,98596.0,98595.0,0.0017002]
[1740132815590,1.80987329,98596.0,98595.0,0.0017002]
[1740132815790,1.19624529,98596.0,98595.0,0.0017002]
[1740132816025,1.14305229,98596.0,98595.0,0.0017002]
[1740132816951,0.96382529,98596.0,98595.0,0.0017002]
[1740132819443,1.05887611,98596.0,98595.0,0.0017002]
[1740132819756,0.96382529,98596.0,98595.0,0.0017002]
[1740132820885,0.80577929,98596.0,98595.0,0.0017002]
[1740132822067,0.79515529,98596.0,98595.0,0.0017002]
[1740132822729,0.63590329,98596.0,98595.0,0.0017002]
[1740132822941,0.79515529,98596.0,98595.0,0.0017002]
[1740132824228,0.47750329,98596.0,98595.0,0.0017002]
[1740132824431,0.48590329,98596.0,98595.0,0.0017002]
[1740132826906,0.62750329,98596.0,98595.0,0.0017002]
[1740132827278,0.63590329,98596.0,98595.0,0.0017002]
[1740132827686,0.55560329,98596.0,98595.0,0.0017002]
[1740132827986,0.50900329,98596.0,98595.0,0.0017002]
[1740132829036,0.50060329,98596.0,98595.0,0.0017002]
[1740132829192,0.48900329,98596.0,98595.0,0.0017002]
[1740132829401,0.50900329,98596.0,98595.0,0.0017002]
[1740132829812,0.48900329,98596.0,98595.0,0.0017002]
[1740132830003,0.50900329,98596.0,98595.0,0.0017002]
[1740132830435,0.48060329,98596.0,98595.0,0.0017002]
[1740132830655,0.48900329,98596.0,98595.0,0.0017002]
[1740132830858,0.17846829,98596.0,98595.0,0.0825242]
[1740132831016,0.35647183,98596.0,98595.0,0.0825242]
[1740132831420,0.35209695,98596.0,98595.0,0.0825242]
[1740132831682,0.33809695,98596.0,98595.0,0.0825242]
[1740132831907,0.19896195,98596.0,98595.0,0.0825242]
[1740132832083,0.06791626,98596.0,98595.0,0.0825242]
[1740132832236,0.07631626,98596.0,98595.0,0.0825242]
[1740132832446,0.07369114,98596.0,98595.0,0.0825242]
[1740132832641,0.06529114,98596.0,98595.0,0.0825242]
[1740132832874,0.08931626,98596.0,98595.0,0.0825242]
[1740132833084,0.22180583,98596.0,98595.0,0.0825242]
[1740132833231,0.20818071,98596.0,98595.0,0.0825242]
[1740132833432,0.05604571,98596.0,98595.0,0.0825242]
[1740132833894,0.05867083,98596.0,98595.0,0.0825242]
[1740132834109,0.05027083,98596.0,98595.0,0.0825242]
[1740132834409,0.04904571,98596.0,98595.0,0.0825242]
[1740132834612,0.05304571,98596.0,98595.0,0.0825242]
[1740132834814,0.06267083,98596.0,98595.0,0.0825242]
[1740132835046,0.06004571,98596.0,98595.0,0.0825242]
[1740132835195,0.05567083,98596.0,98595.0,0.0825242]
[1740132835397,0.06067083,98596.0,98595.0,0.0825242]
[1740132835760,0.21280583,98596.0,98595.0,0.0825242]
[1740132836387,0.06067083,98596.0,98595.0,0.0825242]
[1740132843802,0.06067083,98596.0,98595.0,0.3133612]
[1740132844017,0.04067083,98596.0,98595.0,0.3133612]
[1740132844221,0.0183205,98596.0,98595.0,0.3133612]
[1740132844418,0.0099205,98596.0,98595.0,0.3133612]
[1740132844661,0.0333205,98596.0,98595.0,0.6885612]
[1740132844866,0.0373205,98596.0,98595.0,0.6885612]